[Event "Titled Tuesday Blitz September 14 2021"]
[White "Mikhailovsky, Vladimir"]
[Black "Demchenko, Anton"]
[WhiteFideId "34105414"]
[BlackFideId "4160258"]
[WhiteElo "2414"]
[BlackElo "2583"]
[Result "1-0"]
[Round "11"]
[TimeControl "180+1"]
[Date "2021.09.15"]
[WhiteClock "0:00:04"]
[BlackClock "0:00:01"]

1. e4 {[%clk 0:03:00]}  e5 {[%clk 0:02:59]} 2. Nf3 {[%clk 0:02:59]}  Nc6 {[%clk 0:02:59]} 3. Nc3 {[%clk 0:02:59]}  Nf6 {[%clk 0:02:59]} 4. g3 {[%clk 0:03:00]}  d5 {[%clk 0:02:52]} 5. exd5 {[%clk 0:03:01]}  Nxd5 {[%clk 0:02:52]} 6. Bg2 {[%clk 0:03:01]}  Nxc3 {[%clk 0:02:53]} 7. bxc3 {[%clk 0:03:02]}  Bc5 {[%clk 0:02:52]} 8. O-O {[%clk 0:03:02]}  O-O {[%clk 0:02:53]} 9. Re1 {[%clk 0:03:01]}  Re8 {[%clk 0:02:53]} 10. d3 {[%clk 0:03:01]}  Bg4 {[%clk 0:02:36]} 11. h3 {[%clk 0:03:00]}  Bf5 {[%clk 0:02:30]} 12. Nd2 {[%clk 0:02:46]}  Qd7 {[%clk 0:02:27]} 13. Ne4 {[%clk 0:02:23]}  Bb6 {[%clk 0:02:21]} 14. Qh5 {[%clk 0:02:23]}  Bg6 {[%clk 0:02:13]} 15. Qh4 {[%clk 0:02:23]}  Ne7 {[%clk 0:02:06]} 16. a4 {[%clk 0:01:46]}  a5 {[%clk 0:01:59]} 17. g4 {[%clk 0:01:35]}  Nd5 {[%clk 0:01:43]} 18. Be3 {[%clk 0:00:57]}  Rad8 {[%clk 0:01:17]} 19. c4 {[%clk 0:00:49]}  Bxe3 {[%clk 0:01:08]} 20. fxe3 {[%clk 0:00:40]}  Nb4 {[%clk 0:01:08]} 21. Re2 {[%clk 0:00:37]}  b6 {[%clk 0:01:07]} 22. Rf2 {[%clk 0:00:35]}  Qe7 {[%clk 0:01:03]} 23. Qg3 {[%clk 0:00:31]}  Bxe4 {[%clk 0:00:22]} 24. Bxe4 {[%clk 0:00:31]}  Rd6 {[%clk 0:00:21]} 25. Raf1 {[%clk 0:00:30]}  Rf8 {[%clk 0:00:20]} 26. h4 {[%clk 0:00:27]}  c6 {[%clk 0:00:20]} 27. g5 {[%clk 0:00:27]}  Na6 {[%clk 0:00:19]} 28. Bf5 {[%clk 0:00:16]}  Nc5 {[%clk 0:00:18]} 29. Ra1 {[%clk 0:00:10]}  g6 {[%clk 0:00:14]} 30. Bh3 {[%clk 0:00:10]}  f5 {[%clk 0:00:14]} 31. Bg2 {[%clk 0:00:06]}  Kg7 {[%clk 0:00:13]} 32. h5 {[%clk 0:00:04]}  Rfd8 {[%clk 0:00:13]} 33. h6+ {[%clk 0:00:04]}  Kg8 {[%clk 0:00:12]} 34. Qh4 {[%clk 0:00:05]}  e4 {[%clk 0:00:05]} 35. d4 {[%clk 0:00:05]}  Na6 {[%clk 0:00:06]} 36. Qf4 {[%clk 0:00:04]}  c5 {[%clk 0:00:06]} 37. d5 {[%clk 0:00:04]}  Re8 {[%clk 0:00:06]} 38. Rb1 {[%clk 0:00:04]}  Qe5 {[%clk 0:00:07]} 39. Qxe5 {[%clk 0:00:04]}  Rxe5 {[%clk 0:00:08]} 40. c3 {[%clk 0:00:04]}  Re8 {[%clk 0:00:08]} 41. Rfb2 {[%clk 0:00:05]}  Rb8 {[%clk 0:00:08]} 42. Kf2 {[%clk 0:00:05]}  Kf7 {[%clk 0:00:09]} 43. Kg3 {[%clk 0:00:06]}  Ke7 {[%clk 0:00:10]} 44. Kf4 {[%clk 0:00:06]}  Nc7 {[%clk 0:00:08]} 45. Bf1 {[%clk 0:00:06]}  Ne8 {[%clk 0:00:07]} 46. Rb5 {[%clk 0:00:07]}  Kd7 {[%clk 0:00:01]} 47. Rxa5 {[%clk 0:00:07]}  Nc7 {[%clk 0:00:01]} 48. Rxc5 {[%clk 0:00:06]}  Ra8 {[%clk 0:00:01]} 49. Rcb5 {[%clk 0:00:04]}  Nxb5 {[%clk 0:00:01]} 50. axb5 {[%clk 0:00:04]} 1-0


[Site "https://www.chess.com"]

[Event "Titled Tuesday Blitz September 14 2021"]
[White "Murzin, Volodar"]
[Black "Andreikin, Dmitry"]
[WhiteFideId "44155573"]
[BlackFideId "4158814"]
[WhiteElo "2514"]
[BlackElo "2736"]
[Result "0-1"]
[Round "11"]
[TimeControl "180+1"]
[Date "2021.09.15"]
[WhiteClock "0:00:06"]
[BlackClock "0:00:13"]

1. e4 {[%clk 0:02:59]}  g6 {[%clk 0:02:59]} 2. Nf3 {[%clk 0:02:57]}  b6 {[%clk 0:02:59]} 3. d4 {[%clk 0:02:53]}  Bb7 {[%clk 0:02:59]} 4. Bc4 {[%clk 0:02:52]}  Bg7 {[%clk 0:02:56]} 5. Qe2 {[%clk 0:02:50]}  e6 {[%clk 0:02:53]} 6. O-O {[%clk 0:02:49]}  Ne7 {[%clk 0:02:52]} 7. c3 {[%clk 0:02:47]}  d6 {[%clk 0:02:51]} 8. Bf4 {[%clk 0:02:44]}  h6 {[%clk 0:02:50]} 9. Nbd2 {[%clk 0:02:44]}  g5 {[%clk 0:02:50]} 10. Bg3 {[%clk 0:02:41]}  Ng6 {[%clk 0:02:50]} 11. d5 {[%clk 0:02:33]}  e5 {[%clk 0:02:49]} 12. Rfd1 {[%clk 0:02:22]}  g4 {[%clk 0:02:39]} 13. Ne1 {[%clk 0:02:22]}  h5 {[%clk 0:02:39]} 14. f3 {[%clk 0:01:27]}  h4 {[%clk 0:02:38]} 15. Bf2 {[%clk 0:01:26]}  Nf4 {[%clk 0:02:37]} 16. Qf1 {[%clk 0:01:26]}  g3 {[%clk 0:02:34]} 17. hxg3 {[%clk 0:01:26]}  hxg3 {[%clk 0:02:33]} 18. Bxg3 {[%clk 0:01:27]}  Qg5 {[%clk 0:02:28]} 19. Bxf4 {[%clk 0:01:25]}  exf4 {[%clk 0:02:28]} 20. Nd3 {[%clk 0:01:23]}  Nd7 {[%clk 0:02:21]} 21. Bb5 {[%clk 0:01:22]}  O-O-O {[%clk 0:02:21]} 22. Nc4 {[%clk 0:01:05]}  Nf6 {[%clk 0:01:57]} 23. Bc6 {[%clk 0:00:30]}  Rh6 {[%clk 0:01:19]} 24. Bxb7+ {[%clk 0:00:16]}  Kxb7 {[%clk 0:01:20]} 25. Kf2 {[%clk 0:00:14]}  Rh2 {[%clk 0:01:15]} 26. Ne1 {[%clk 0:00:14]}  b5 {[%clk 0:01:00]} 27. Na5+ {[%clk 0:00:14]}  Kb6 {[%clk 0:01:00]} 28. Nc6 {[%clk 0:00:09]}  Nxe4+ {[%clk 0:00:58]} 29. fxe4 {[%clk 0:00:07]}  Qg3+ {[%clk 0:00:58]} 30. Kg1 {[%clk 0:00:07]}  Qe3+ {[%clk 0:00:40]} 31. Qf2 {[%clk 0:00:07]}  Rh1+ {[%clk 0:00:41]} 32. Kxh1 {[%clk 0:00:07]}  Qxf2 {[%clk 0:00:40]} 33. Nxd8 {[%clk 0:00:08]}  Qxb2 {[%clk 0:00:21]} 34. a4 {[%clk 0:00:07]}  b4 {[%clk 0:00:17]} 35. cxb4 {[%clk 0:00:06]}  Bd4 {[%clk 0:00:15]} 36. a5+ {[%clk 0:00:06]}  Kb5 {[%clk 0:00:14]} 37. Nc6 {[%clk 0:00:06]}  Bf2 {[%clk 0:00:13]} 38. Nd3 {[%clk 0:00:06]}  Qh8# {[%clk 0:00:13]} 0-1


[Site "https://www.chess.com"]

[Event "Titled Tuesday Blitz September 14 2021"]
[White "Sadhwani, Raunak"]
[Black "Nesterov, Arseniy"]
[WhiteFideId "35093487"]
[BlackFideId "24198455"]
[WhiteElo "2517"]
[BlackElo "2494"]
[Result "1/2-1/2"]
[Round "11"]
[TimeControl "180+1"]
[Date "2021.09.15"]
[WhiteClock "0:00:09"]
[BlackClock "0:00:09"]

1. d4 {[%clk 0:03:00]}  d5 {[%clk 0:02:59]} 2. Nf3 {[%clk 0:03:01]}  Nf6 {[%clk 0:02:59]} 3. Bf4 {[%clk 0:03:02]}  Bf5 {[%clk 0:02:59]} 4. e3 {[%clk 0:03:02]}  e6 {[%clk 0:02:58]} 5. c4 {[%clk 0:03:02]}  Bxb1 {[%clk 0:02:58]} 6. Rxb1 {[%clk 0:03:03]}  Bb4+ {[%clk 0:02:58]} 7. Ke2 {[%clk 0:03:04]}  Bd6 {[%clk 0:02:56]} 8. g3 {[%clk 0:03:04]}  O-O {[%clk 0:02:45]} 9. Qb3 {[%clk 0:03:02]}  Nc6 {[%clk 0:02:20]} 10. cxd5 {[%clk 0:02:44]}  Nxd5 {[%clk 0:02:21]} 11. Bg2 {[%clk 0:02:43]}  Rb8 {[%clk 0:01:36]} 12. Rbc1 {[%clk 0:02:32]}  Nce7 {[%clk 0:01:32]} 13. Rhd1 {[%clk 0:02:29]}  c6 {[%clk 0:01:29]} 14. Bxd6 {[%clk 0:02:23]}  Qxd6 {[%clk 0:01:30]} 15. Kf1 {[%clk 0:02:23]}  h6 {[%clk 0:01:23]} 16. Kg1 {[%clk 0:02:23]}  Nf6 {[%clk 0:01:20]} 17. Ne5 {[%clk 0:02:23]}  Rfd8 {[%clk 0:01:18]} 18. h3 {[%clk 0:02:18]}  Ned5 {[%clk 0:01:15]} 19. a3 {[%clk 0:02:14]}  Nd7 {[%clk 0:01:10]} 20. Nd3 {[%clk 0:02:13]}  Qe7 {[%clk 0:01:05]} 21. Qa4 {[%clk 0:02:10]}  a6 {[%clk 0:01:02]} 22. Qb3 {[%clk 0:02:10]}  N5f6 {[%clk 0:01:01]} 23. Rc3 {[%clk 0:01:48]}  e5 {[%clk 0:00:55]} 24. dxe5 {[%clk 0:01:49]}  Nxe5 {[%clk 0:00:54]} 25. Nxe5 {[%clk 0:01:50]}  Rxd1+ {[%clk 0:00:46]} 26. Qxd1 {[%clk 0:01:51]}  Qxe5 {[%clk 0:00:46]} 27. Qb3 {[%clk 0:01:48]}  Qe7 {[%clk 0:00:42]} 28. Rd3 {[%clk 0:01:48]}  Rc8 {[%clk 0:00:35]} 29. Qd1 {[%clk 0:01:46]}  g6 {[%clk 0:00:33]} 30. Qb3 {[%clk 0:01:31]}  Rc7 {[%clk 0:00:32]} 31. e4 {[%clk 0:01:12]}  Rd7 {[%clk 0:00:28]} 32. Kh2 {[%clk 0:01:06]}  Rxd3 {[%clk 0:00:26]} 33. Qxd3 {[%clk 0:01:07]}  Nd7 {[%clk 0:00:23]} 34. f4 {[%clk 0:01:04]}  Nc5 {[%clk 0:00:17]} 35. Qd4 {[%clk 0:01:04]}  Ne6 {[%clk 0:00:17]} 36. Qe5 {[%clk 0:01:04]}  Qc7 {[%clk 0:00:12]} 37. Qc3 {[%clk 0:01:05]}  Ng7 {[%clk 0:00:09]} 38. Qd4 {[%clk 0:00:53]}  Ne6 {[%clk 0:00:09]} 39. Qc3 {[%clk 0:00:49]}  Qd6 {[%clk 0:00:09]} 40. f5 {[%clk 0:00:39]}  Nd4 {[%clk 0:00:08]} 41. fxg6 {[%clk 0:00:30]}  fxg6 {[%clk 0:00:07]} 42. h4 {[%clk 0:00:24]}  Qe5 {[%clk 0:00:04]} 43. Qb4 {[%clk 0:00:20]}  b5 {[%clk 0:00:03]} 44. Qc3 {[%clk 0:00:18]}  c5 {[%clk 0:00:03]} 45. Qe3 {[%clk 0:00:16]}  Kg7 {[%clk 0:00:02]} 46. b4 {[%clk 0:00:16]}  c4 {[%clk 0:00:02]} 47. Bf1 {[%clk 0:00:16]}  Nc6 {[%clk 0:00:02]} 48. Qb6 {[%clk 0:00:13]}  Qb2+ {[%clk 0:00:01]} 49. Bg2 {[%clk 0:00:13]}  Qf6 {[%clk 0:00:02]} 50. Qxa6 {[%clk 0:00:12]}  Nd4 {[%clk 0:00:02]} 51. Qb7+ {[%clk 0:00:11]}  Qf7 {[%clk 0:00:02]} 52. Qb6 {[%clk 0:00:12]}  Qf2 {[%clk 0:00:02]} 53. Qc7+ {[%clk 0:00:11]}  Kg8 {[%clk 0:00:02]} 54. Qd8+ {[%clk 0:00:11]}  Kg7 {[%clk 0:00:03]} 55. Qd7+ {[%clk 0:00:12]}  Kg8 {[%clk 0:00:03]} 56. Qc8+ {[%clk 0:00:12]}  Kg7 {[%clk 0:00:04]} 57. Qb7+ {[%clk 0:00:13]}  Kg8 {[%clk 0:00:04]} 58. e5 {[%clk 0:00:13]}  c3 {[%clk 0:00:04]} 59. Qc8+ {[%clk 0:00:13]}  Kg7 {[%clk 0:00:04]} 60. Qxc3 {[%clk 0:00:14]}  Ne2 {[%clk 0:00:04]} 61. Qc7+ {[%clk 0:00:15]}  Kg8 {[%clk 0:00:04]} 62. Qd8+ {[%clk 0:00:15]}  Kg7 {[%clk 0:00:03]} 63. Qe7+ {[%clk 0:00:15]}  Kg8 {[%clk 0:00:03]} 64. Qf6 {[%clk 0:00:14]}  Qxg3+ {[%clk 0:00:03]} 65. Kh1 {[%clk 0:00:14]}  Qe1+ {[%clk 0:00:02]} 66. Bf1 {[%clk 0:00:14]}  Ng3+ {[%clk 0:00:02]} 67. Kg2 {[%clk 0:00:15]}  Nxf1 {[%clk 0:00:03]} 68. Qxf1 {[%clk 0:00:16]}  Qxe5 {[%clk 0:00:03]} 69. Qf3 {[%clk 0:00:17]}  Qb2+ {[%clk 0:00:03]} 70. Kg3 {[%clk 0:00:16]}  Qe5+ {[%clk 0:00:04]} 71. Kh3 {[%clk 0:00:16]}  Qe6+ {[%clk 0:00:04]} 72. Kg2 {[%clk 0:00:16]}  Qe5 {[%clk 0:00:04]} 73. Qa8+ {[%clk 0:00:15]}  Kg7 {[%clk 0:00:04]} 74. Qf3 {[%clk 0:00:15]}  Qb2+ {[%clk 0:00:03]} 75. Kh3 {[%clk 0:00:15]}  Qe5 {[%clk 0:00:04]} 76. Qb7+ {[%clk 0:00:15]}  Kf6 {[%clk 0:00:04]} 77. Qa7 {[%clk 0:00:07]}  Qe6+ {[%clk 0:00:04]} 78. Kg3 {[%clk 0:00:07]}  Qe5+ {[%clk 0:00:04]} 79. Kf3 {[%clk 0:00:08]}  Qc3+ {[%clk 0:00:04]} 80. Ke2 {[%clk 0:00:08]}  Qc4+ {[%clk 0:00:04]} 81. Ke3 {[%clk 0:00:08]}  Qc3+ {[%clk 0:00:04]} 82. Ke4 {[%clk 0:00:07]}  Qc2+ {[%clk 0:00:03]} 83. Ke3 {[%clk 0:00:08]}  Qc1+ {[%clk 0:00:04]} 84. Ke2 {[%clk 0:00:08]}  Qc2+ {[%clk 0:00:04]} 85. Kf3 {[%clk 0:00:09]}  Qc3+ {[%clk 0:00:03]} 86. Kf4 {[%clk 0:00:09]}  Qd2+ {[%clk 0:00:03]} 87. Kg3 {[%clk 0:00:09]}  Qe1+ {[%clk 0:00:03]} 88. Kf3 {[%clk 0:00:08]}  Qf1+ {[%clk 0:00:03]} 89. Ke4 {[%clk 0:00:08]}  Qc4+ {[%clk 0:00:02]} 90. Ke3 {[%clk 0:00:08]}  Qc3+ {[%clk 0:00:03]} 91. Ke2 {[%clk 0:00:09]}  Qc2+ {[%clk 0:00:03]} 92. Kf1 {[%clk 0:00:10]}  Qd1+ {[%clk 0:00:04]} 93. Kg2 {[%clk 0:00:10]}  Qg4+ {[%clk 0:00:04]} 94. Kf1 {[%clk 0:00:09]}  Qd1+ {[%clk 0:00:05]} 95. Kf2 {[%clk 0:00:09]}  Qd2+ {[%clk 0:00:05]} 96. Kf3 {[%clk 0:00:09]}  Qd3+ {[%clk 0:00:06]} 97. Kf4 {[%clk 0:00:07]}  Qd2+ {[%clk 0:00:06]} 98. Ke4 {[%clk 0:00:06]}  Qg2+ {[%clk 0:00:06]} 99. Kd3 {[%clk 0:00:05]}  Qd5+ {[%clk 0:00:06]} 100. Kc2 {[%clk 0:00:05]}  Qc4+ {[%clk 0:00:06]} 101. Kb2 {[%clk 0:00:06]}  Qe2+ {[%clk 0:00:06]} 102. Kb3 {[%clk 0:00:06]}  Qd3+ {[%clk 0:00:07]} 103. Kb2 {[%clk 0:00:07]}  Qd2+ {[%clk 0:00:07]} 104. Kb1 {[%clk 0:00:07]}  Qd1+ {[%clk 0:00:07]} 105. Kb2 {[%clk 0:00:08]}  Qd2+ {[%clk 0:00:08]} 106. Kb3 {[%clk 0:00:08]}  Qd3+ {[%clk 0:00:08]} 107. Kb2 {[%clk 0:00:09]}  Qd2+ {[%clk 0:00:09]} 1/2-1/2


[Site "https://www.chess.com"]

[Event "Titled Tuesday Blitz September 14 2021"]
[White "Sarana, Alexey"]
[Black "Hansen, Eric"]
[WhiteFideId "24133795"]
[BlackFideId "2606771"]
[WhiteElo "2671"]
[BlackElo "2568"]
[Result "0-1"]
[Round "11"]
[TimeControl "180+1"]
[Date "2021.09.15"]
[WhiteClock "0:00:17"]
[BlackClock "0:00:24"]

1. d4 {[%clk 0:03:00]}  Nf6 {[%clk 0:02:58]} 2. c4 {[%clk 0:03:01]}  e6 {[%clk 0:02:53]} 3. Nf3 {[%clk 0:03:00]}  b6 {[%clk 0:02:46]} 4. g3 {[%clk 0:03:00]}  Bb7 {[%clk 0:02:44]} 5. Bg2 {[%clk 0:03:00]}  Be7 {[%clk 0:02:44]} 6. O-O {[%clk 0:03:00]}  O-O {[%clk 0:02:44]} 7. Re1 {[%clk 0:03:00]}  Qc8 {[%clk 0:02:40]} 8. Nc3 {[%clk 0:02:59]}  Ne4 {[%clk 0:02:39]} 9. Qc2 {[%clk 0:02:59]}  Nxc3 {[%clk 0:02:39]} 10. Qxc3 {[%clk 0:02:59]}  d6 {[%clk 0:02:38]} 11. h4 {[%clk 0:02:59]}  Nd7 {[%clk 0:02:38]} 12. Bg5 {[%clk 0:02:59]}  Qd8 {[%clk 0:02:33]} 13. e4 {[%clk 0:02:58]}  h6 {[%clk 0:02:29]} 14. Bxe7 {[%clk 0:02:57]}  Qxe7 {[%clk 0:02:29]} 15. Rad1 {[%clk 0:02:57]}  e5 {[%clk 0:02:27]} 16. Bh3 {[%clk 0:02:55]}  exd4 {[%clk 0:02:03]} 17. Nxd4 {[%clk 0:02:56]}  Rad8 {[%clk 0:01:59]} 18. Bxd7 {[%clk 0:02:44]}  Qxd7 {[%clk 0:01:57]} 19. Nf5 {[%clk 0:02:44]}  f6 {[%clk 0:01:54]} 20. Qf3 {[%clk 0:02:45]}  Qf7 {[%clk 0:01:46]} 21. b3 {[%clk 0:02:42]}  Rfe8 {[%clk 0:01:46]} 22. Qf4 {[%clk 0:02:38]}  h5 {[%clk 0:01:44]} 23. f3 {[%clk 0:02:37]}  Re5 {[%clk 0:01:42]} 24. Kf2 {[%clk 0:02:33]}  Rde8 {[%clk 0:01:42]} 25. Ne3 {[%clk 0:02:32]}  a5 {[%clk 0:01:39]} 26. Rg1 {[%clk 0:02:31]}  Bxe4 {[%clk 0:01:38]} 27. Rde1 {[%clk 0:02:26]}  Bc6 {[%clk 0:01:26]} 28. g4 {[%clk 0:02:26]}  Kh7 {[%clk 0:01:15]} 29. gxh5 {[%clk 0:02:20]}  Qxh5 {[%clk 0:01:14]} 30. Rg4 {[%clk 0:02:07]}  R8e7 {[%clk 0:01:13]} 31. Qg3 {[%clk 0:01:42]}  Bd7 {[%clk 0:01:03]} 32. Rd4 {[%clk 0:01:15]}  a4 {[%clk 0:00:59]} 33. f4 {[%clk 0:01:01]}  Re4 {[%clk 0:00:53]} 34. Rxe4 {[%clk 0:01:01]}  Rxe4 {[%clk 0:00:54]} 35. Rg1 {[%clk 0:01:00]}  g6 {[%clk 0:00:49]} 36. Re1 {[%clk 0:00:48]}  Bc6 {[%clk 0:00:39]} 37. Ng4 {[%clk 0:00:44]}  Qc5+ {[%clk 0:00:34]} 38. Re3 {[%clk 0:00:41]}  Qd4 {[%clk 0:00:33]} 39. Kg1 {[%clk 0:00:33]}  Qd1+ {[%clk 0:00:27]} 40. Kf2 {[%clk 0:00:29]}  Qd4 {[%clk 0:00:23]} 41. Kg1 {[%clk 0:00:24]}  f5 {[%clk 0:00:23]} 42. h5 {[%clk 0:00:17]}  fxg4 {[%clk 0:00:24]} 43. hxg6+ {[%clk 0:00:17]}  Kg7 {[%clk 0:00:24]} 0-1


[Site "https://www.chess.com"]